bitfinex/quotes_ETHUSD_20250511
["timestamp","ask_amount","ask_price","bid_price","bid_amount"]
[1746946049968,0.20682121,2511.4,2509.8,3.546]
[1746946050180,0.50860393,2511.4,2509.8,1.11736709]
[1746946050379,3.98357701,2510.4,2509.7,7.62767093]
[1746946050581,3.693,2510.5,2509.7,7.66750738]
[1746946050789,3.98207484,2511.3,2509.7,7.62767093]
[1746946051093,0.49808044,2511.4,2509.8,18.105]
[1746946051279,0.35503836,2511.2,2509.9,3.796]
[1746946051479,3.98130962,2511.8,2510.0,2.23033239]
[1746946051796,8.0,2511.8,2510.1,0.7767]
[1746946052271,8.0,2511.1,2509.7,7.62767093]
[1746946052464,0.55,2511.0,2509.7,11.42567093]
[1746946052792,3.891,2510.9,2509.8,3.798]
[1746946052992,2.57880733,2510.9,2509.8,4.1778]
[1746946053196,2.57880733,2510.9,2509.8,0.3798]
[1746946053378,2.57880733,2510.9,2509.9,3.83783259]
[1746946053582,2.73132304,2511.5,2510.0,8.55]
[1746946053782,2.73132304,2511.5,2510.2,0.7918]
[1746946054185,2.73132304,2511.5,2510.2,8.7918]
[1746946054607,7.90774993,2511.5,2510.3,3.926]
[1746946054761,3.98261973,2511.0,2510.2,0.7918]
[1746946055107,3.98234743,2511.1,2510.0,3.926]
[1746946055313,3.98213858,2511.3,2510.1,3.926]
[1746946055511,9.35958917,2511.5,2510.1,3.926]
[1746946055694,4.23234342,2512.1,2510.2,0.03983316]
[1746946055901,4.0233683,2512.6,2510.3,0.55]
[1746946056214,3.938,2512.7,2510.3,0.55]
[1746946056419,3.938,2512.7,2510.5,0.55]
[1746946056574,3.98023828,2512.5,2510.7,6.25279997]
[1746946056911,3.3630934,2512.8,2510.9,0.55]
[1746946056912,3.935,2512.6,2510.9,0.55]
[1746946057120,3.3630934,2512.8,2511.1,0.55]
[1746946057267,3.3630934,2512.8,2510.9,5.43358917]
[1746946057599,7.34272725,2512.8,2511.1,0.55]
[1746946057799,3.3630934,2512.8,2511.1,0.55]
[1746946057970,3.3630934,2512.8,2511.4,0.8145]
[1746946058301,3.3630934,2512.8,2511.5,7.858]
[1746946058504,3.3630934,2512.8,2511.4,0.8145]
[1746946058707,3.97994109,2512.6,2511.4,0.8145]
[1746946058901,3.927,2512.7,2511.4,0.8145]
[1746946059079,3.927,2512.7,2511.5,3.928]
[1746946059285,0.03980697,2512.7,2511.6,7.83980686]
[1746946059517,0.03980697,2513.2,2511.6,11.76580686]
[1746946059696,0.03980697,2513.2,2511.7,0.03979925]
[1746946060001,0.03980697,2513.2,2511.7,0.03979973]
[1746946060301,0.03980697,2513.2,2511.8,0.8145]
[1746946060501,0.29836127,2513.7,2511.8,0.8145]
[1746946060502,0.03980697,2513.6,2511.8,0.8145]
[1746946060804,3.97851601,2513.5,2511.9,7.853]
[1746946061106,0.03980697,2513.4,2511.9,7.853]
[1746946061414,8.34330417,2513.7,2511.9,7.853]
[1746946061609,3.9788157,2513.4,2512.0,0.86675]
[1746946061911,3.97956948,2512.9,2512.1,3.928]
[1746946062102,0.03980697,2512.8,2512.1,3.928]
[1746946062305,4.01956839,2512.8,2511.8,0.8145]
[1746946062609,0.03980697,2512.8,2511.9,3.928]
[1746946062810,0.03980697,2513.0,2512.0,0.47425]
[1746946063111,0.03980697,2513.5,2512.2,0.7787]
[1746946063473,0.35568093,2513.4,2512.2,0.7787]
[1746946063674,3.98073074,2512.2,2511.1,0.7787]
[1746946063901,0.03980697,2512.8,2511.1,4.7067]
[1746946064133,3.931,2512.9,2511.2,0.47067]
[1746946064432,3.98005222,2512.6,2511.2,3.928]
[1746946064591,3.98056907,2512.3,2511.2,3.928]
[1746946064913,3.9796797,2512.8,2511.1,0.7787]
[1746946064914,0.03980697,2512.2,2511.3,3.96780836]
[1746946065075,0.03980697,2512.7,2511.6,0.7787]
[1746946065900,0.03980697,2513.0,2511.7,0.03980262]
[1746946066088,0.03980697,2513.6,2512.1,5.43358917]
[1746946066295,8.0,2514.1,2512.3,0.7787]
[1746946066495,0.03980697,2514.0,2512.3,0.7787]
[1746946066701,0.03980697,2514.0,2512.3,4.7087]
[1746946066895,0.03980697,2514.0,2512.4,0.03978898]
[1746946067210,0.35658366,2513.9,2512.5,3.928]
[1746946067396,3.97830416,2513.7,2512.5,3.928]
[1746946067598,3.925,2514.3,2512.5,3.928]
[1746946067599,0.39639063,2513.6,2512.5,3.928]
[1746946067786,0.39639063,2513.6,2512.6,0.03979138]
[1746946067992,3.97851601,2513.5,2512.7,14.322]
[1746946068209,0.03980697,2513.4,2512.7,14.322]
[1746946068515,0.39639063,2513.4,2512.7,14.322]
[1746946069009,0.39639063,2513.4,2512.8,0.03979139]
[1746946069220,0.35658366,2513.3,2512.7,14.322]
[1746946069428,0.35658366,2513.3,2512.8,0.0397914]
[1746946069631,0.35658366,2513.3,2512.9,0.8047]
[1746946069913,3.902,2514.6,2513.1,1.3547]
[1746946070116,0.03980697,2514.5,2513.2,3.928]
[1746946070317,3.97723601,2514.4,2513.3,0.52827]
[1746946070617,0.03980697,2514.7,2513.3,0.52827]
[1746946070817,3.97719725,2514.4,2513.3,0.52827]
[1746946071127,0.03980697,2514.3,2513.4,3.928]
[1746946071282,4.01712129,2514.3,2513.4,3.928]
[1746946071613,3.97778372,2514.0,2513.1,0.8047]
[1746946071819,0.03980697,2514.1,2513.2,3.928]
[1746946071978,0.03980697,2514.4,2513.2,3.928]
[1746946072181,3.97725012,2514.3,2513.3,1.90537]
[1746946072412,0.03980697,2514.4,2513.1,15.1257]
[1746946072413,0.03980697,2514.2,2513.1,0.8047]
[1746946072877,4.01735101,2514.2,2513.1,0.8047]
[1746946073078,4.0172701,2514.2,2513.1,0.8047]
[1746946073279,3.97756652,2514.1,2513.2,3.928]
[1746946073490,4.01765704,2514.0,2513.3,3.928]
[1746946073717,4.01765704,2514.0,2513.3,3.96778458]
[1746946074021,0.03980697,2514.0,2513.3,3.96778458]
[1746946074183,3.97734584,2514.3,2513.3,3.928]
[1746946074384,0.03980697,2514.2,2513.4,0.03977829]
[1746946074930,3.97815413,2513.8,2513.1,0.8047]
[1746946075089,0.03980697,2513.7,2513.4,3.928]
[1746946075284,3.97807568,2513.8,2513.4,3.928]
[1746946075498,0.03980697,2513.8,2513.4,3.928]
[1746946075718,3.977765,2514.0,2513.4,3.928]
[1746946075719,0.03980697,2513.9,2513.4,3.928]
[1746946076024,0.03980697,2514.1,2513.4,3.928]
[1746946076214,3.97695767,2514.5,2513.5,0.43258101]
[1746946076526,0.03980697,2514.4,2513.4,1.68497647]
[1746946076684,0.04971865,2514.5,2513.5,0.83114931]
[1746946076885,0.04971865,2514.5,2513.5,0.8113]
[1746946077517,4.02674086,2514.5,2513.5,0.8113]
[1746946077721,0.04971865,2514.5,2513.6,14.32]
[1746946078626,0.04971755,2514.7,2513.6,15.6608028]
[1746946079331,0.04971104,2514.9,2513.6,15.6608028]
[1746946079485,0.04971104,2515.0,2513.8,0.7968]
[1746946079686,0.04970764,2515.2,2513.9,0.0198273]
[1746946079996,0.04970764,2515.2,2514.1,0.7968]
[1746946080210,3.97547193,2515.5,2514.3,0.7968]
[1746946080420,0.04969822,2515.4,2514.3,0.7968]
[1746946080935,0.04969822,2515.4,2514.3,1.26918]
[1746946081252,0.04969622,2515.8,2514.5,0.7968]
[1746946081534,0.04969622,2515.8,2514.7,0.7968]
[1746946081895,3.97503676,2515.7,2514.7,0.7968]
[1746946082205,4.38477689,2515.6,2514.7,0.7968]
[1746946082732,0.40951516,2515.6,2514.7,0.7968]
[1746946083024,3.97675299,2514.7,2514.2,0.7968]
[1746946083231,13.64968054,2515.5,2513.9,3.926]
[1746946083232,0.04971139,2514.6,2513.9,3.926]
[1746946083528,3.97772474,2514.0,2513.9,3.926]
[1746946083727,3.97747625,2514.2,2513.9,3.926]
[1746946084029,4.02684155,2514.4,2513.9,3.926]
[1746946084030,0.04972225,2514.4,2513.9,3.926]
[1746946084219,3.97719267,2514.4,2513.9,3.926]
[1746946084383,0.35981881,2514.3,2513.9,3.926]
[1746946085136,3.97819946,2513.7,2513.6,0.7968]
[1746946085298,3.97809075,2513.8,2513.6,0.7968]
[1746946085506,0.04971434,2514.2,2513.6,0.7968]
[1746946085828,3.97819946,2513.7,2513.6,0.7968]
[1746946086036,3.97857751,2513.5,2513.3,3.849]
[1746946086189,3.97808128,2513.8,2513.3,3.849]
[1746946086390,3.9784743,2513.6,2513.3,3.849]
[1746946086639,3.9784743,2513.6,2512.5,5.43358917]
[1746946086640,3.97936771,2513.0,2512.2,0.7968]
[1746946086842,3.97962249,2512.9,2512.3,3.849]
[1746946086997,0.04974075,2512.9,2512.4,3.849]
[1746946087190,0.04974075,2512.9,2511.2,5.43358917]
[1746946087191,3.833,2512.8,2511.4,0.7968]
[1746946087387,3.98070169,2512.2,2511.4,0.7968]
[1746946087734,3.98157496,2511.6,2511.4,0.7968]
[1746946088030,0.04977334,2512.0,2511.4,0.7968]
[1746946088197,0.04977334,2512.0,2511.0,3.849]
[1746946088533,3.98147314,2511.7,2511.0,3.849]
[1746946088741,0.04977495,2511.6,2510.9,0.817]
[1746946088933,0.04977495,2511.6,2511.0,3.85]
[1746946089239,3.98172432,2511.5,2511.1,3.85]
[1746946089418,0.0497754,2511.6,2511.1,3.85]
[1746946089632,0.30205044,2512.0,2511.1,3.85]
[1746946089633,4.33285195,2512.0,2511.2,0.01996281]
[1746946089833,0.35182584,2512.0,2511.1,3.85]
[1746946090234,0.21616315,2511.9,2510.9,0.817]
[1746946090452,3.98190538,2511.4,2510.4,0.817]
[1746946090651,3.98317108,2510.6,2510.4,0.817]
[1746946090813,3.98422247,2509.9,2509.8,0.817]
[1746946091014,3.9841013,2510.0,2509.8,0.817]
[1746946091213,3.98406374,2510.0,2509.8,0.817]
[1746946091409,3.98406374,2510.0,2509.2,0.005]
[1746946091410,3.98438122,2509.8,2509.2,0.005]
[1746946091626,0.04981483,2509.7,2509.2,0.005]
[1746946091931,0.04982209,2510.1,2509.2,0.005]
[1746946092245,0.04980273,2510.8,2509.3,4.6017]
[1746946092432,0.04980273,2510.8,2509.3,5.44647]
[1746946092634,3.98312859,2510.6,2509.4,0.02001048]
[1746946092959,3.85,2511.9,2509.8,0.8169]
[1746946093124,8.2648271,2511.8,2509.9,18.174]
[1746946093342,0.2648271,2511.8,2510.1,0.8169]
[1746946093540,3.98305731,2510.7,2510.1,0.8169]
[1746946093709,0.04979266,2510.6,2510.1,0.8169]
[1746946093911,3.89979752,2510.9,2509.7,4.6679]
[1746946094240,3.89979752,2510.9,2509.7,3.851]
[1746946094241,3.98423775,2509.9,2509.7,3.851]
[1746946094441,3.98517514,2509.3,2509.2,0.005]
[1746946094658,4.03499865,2509.3,2509.2,0.005]
[1746946094962,12.88966795,2509.3,2509.2,0.005]
[1746946095171,3.98692289,2508.2,2508.1,12.93130165]
[1746946095312,7.84192289,2508.2,2508.1,12.93130165]
[1746946095913,0.04984401,2508.3,2508.1,12.93130165]
[1746946096146,0.04984104,2508.7,2508.1,14.43936688]
[1746946096331,3.98692289,2508.2,2508.1,8.67281649]
[1746946096539,0.04984631,2508.2,2508.1,8.67281649]
[1746946096765,3.98507312,2509.4,2508.2,0.8169]
[1746946096913,0.02974167,2509.2,2508.2,0.8169]
[1746946097131,0.02974167,2509.2,2508.1,8.67281649]
[1746946097514,0.02974167,2509.2,2508.2,4.85376489]
[1746946097715,3.985892,2508.9,2508.2,4.8139]
[1746946097924,0.02974167,2508.8,2508.2,4.8139]
[1746946098150,3.98598686,2508.8,2508.2,2.38050671]
[1746946098359,0.02974167,2508.9,2508.2,6.37750671]
[1746946098648,4.01522688,2509.2,2508.2,2.38050671]
[1746946098851,0.02974167,2509.2,2508.3,4.03686239]
[1746946099072,0.02974167,2509.2,2508.4,0.64173691]
[1746946099269,8.0,2508.8,2508.1,8.67281649]
[1746946099569,4.12374167,2508.7,2508.1,8.67281649]
[1746946099718,4.094,2508.6,2508.1,8.67281649]
[1746946099921,0.02974167,2508.5,2508.1,9.46191649]
[1746946100233,0.02974167,2509.2,2508.1,10.5441332]
[1746946100423,0.02974167,2509.2,2508.2,0.03986052]
[1746946100625,0.02974167,2509.6,2508.4,8.0]
[1746946100849,0.02974167,2510.1,2508.6,0.7891]
[1746946101055,0.02974167,2510.1,2508.7,14.37784667]
[1746946101259,0.02974167,2510.1,2508.9,0.7891]
[1746946101428,0.02974167,2510.3,2508.9,0.7891]
[1746946101628,0.7884,2511.0,2509.0,4.8991]
[1746946101629,0.29591145,2510.1,2509.0,4.8991]
[1746946101856,0.29591145,2510.1,2509.1,4.549]
[1746946102167,3.98338984,2510.5,2509.2,0.7891]
[1746946102341,0.02974167,2510.4,2509.3,0.47881]
[1746946102753,0.02974167,2510.8,2509.4,0.7891]
[1746946102948,3.98331599,2510.5,2509.4,0.7891]
[1746946103119,0.02974167,2510.6,2509.5,3.999]
[1746946103325,0.02974167,2511.2,2509.6,0.82943371]
[1746946103549,0.02974167,2511.2,2509.8,0.7896]
[1746946103756,0.3353664,2511.2,2509.8,4.7886]
[1746946104069,0.3353664,2511.2,2509.9,0.03983377]
[1746946104253,0.02974167,2511.2,2510.0,15.1276]
[1746946104416,3.98215992,2511.2,2510.0,15.1276]
[1746946104621,0.30066349,2511.3,2510.0,15.1276]
[1746946104622,0.02974167,2511.1,2510.1,1.51276]
[1746946105126,0.02974167,2511.6,2510.2,0.82942898]
[1746946105421,3.98177345,2511.5,2510.3,3.999]
[1746946105730,3.98208778,2511.3,2510.3,3.999]
[1746946105936,4.01193401,2511.2,2510.2,0.7896]
[1746946106176,0.02974167,2511.2,2510.4,3.999]
[1746946106668,8.0,2510.6,2509.1,0.7896]
[1746946106872,8.8168,2510.3,2508.6,0.7896]
[1746946107188,3.98593963,2508.9,2508.6,0.7896]
[1746946107366,0.02974167,2508.8,2508.6,0.7896]
[1746946107524,0.02974167,2509.0,2508.6,0.7896]
[1746946107723,0.02974167,2509.0,2508.1,8.67281649]
[1746946107724,0.32160089,2509.0,2508.1,8.67281649]
[1746946108069,0.02974167,2509.0,2508.1,10.20779914]
[1746946108452,0.02974167,2509.0,2508.1,8.67281649]
[1746946108646,3.98590927,2508.9,2508.1,8.67281649]
[1746946108864,0.02974167,2508.8,2508.1,8.67281649]
[1746946109048,0.02974167,2509.3,2508.2,0.7896]
[1746946109254,0.02974167,2509.3,2508.3,4.1698591]
[1746946109565,4.11,2509.4,2508.4,0.49594591]
[1746946109869,0.02974167,2509.3,2508.4,0.49594591]
[1746946110235,0.02974167,2509.3,2508.5,0.03985877]
[1746946110434,3.98450383,2509.8,2508.4,0.49594591]
[1746946110435,4.106,2509.5,2508.4,0.49594591]
[1746946110668,0.02974167,2509.7,2508.5,4.16985574]
[1746946110850,4.01354215,2510.2,2508.7,0.7896]
[1746946111164,3.98406374,2510.0,2508.7,0.7896]
[1746946111333,0.02974167,2509.9,2508.7,0.7896]
[1746946111535,3.98481056,2509.6,2508.7,0.7896]
[1746946111740,0.02974167,2509.5,2508.7,0.49196]
[1746946111925,8.0,2509.9,2508.2,0.8071]
[1746946112267,5.43358917,2509.0,2508.1,8.67281649]
[1746946112419,3.98692289,2508.2,2508.1,8.67281649]
[1746946112625,10.24031206,2508.2,2508.0,1.87217627]
[1746946112826,0.6228,2507.2,2505.7,13.22572314]
[1746946113052,9.42242044,2507.0,2505.7,13.22572314]
[1746946113361,0.55,2506.5,2505.7,13.22572314]
[1746946113682,2.384,2506.9,2505.7,27.56672314]
[1746946113966,0.353,2507.7,2505.9,8.0]
[1746946114121,0.4137438,2508.1,2506.0,0.7805]
[1746946114320,0.4137438,2508.1,2506.1,0.03988506]
[1746946114560,0.4137438,2508.1,2506.3,13.43358917]
[1746946114768,0.4137438,2508.1,2506.4,2.55485892]
[1746946114968,0.4137438,2508.1,2506.5,0.03988246]
[1746946115134,4.8847438,2508.1,2506.4,0.7805]
[1746946115330,0.4137438,2508.1,2506.6,8.0]
[1746946115583,0.4137438,2508.1,2506.2,4.86]
[1746946115584,0.4137438,2508.1,2507.1,0.7805]
[1746946115735,0.353,2510.0,2507.5,0.7805]
[1746946115932,5.43358917,2510.2,2508.2,0.55]
[1746946115933,3.98382766,2510.2,2508.2,0.55]
[1746946116278,3.98233884,2511.1,2509.2,5.43358917]
[1746946116580,4.496,2511.2,2509.4,0.7805]
[1746946116749,3.98381623,2510.2,2509.4,0.7805]
[1746946117074,4.498,2510.2,2508.4,8.0]
[1746946117388,3.98406374,2510.0,2508.5,0.7805]
[1746946117679,5.43358917,2510.1,2508.5,0.7805]
[1746946117680,3.98454688,2509.7,2508.5,0.7805]
[1746946117840,0.57141187,2510.1,2508.5,5.2285]
[1746946118043,8.57141187,2510.1,2508.6,0.52285]
[1746946118337,0.21427579,2510.0,2508.6,0.52285]
[1746946118538,4.85213608,2509.9,2508.6,0.52285]
[1746946119081,4.85213608,2509.9,2508.5,5.2285]
[1746946119295,3.984855,2509.6,2508.5,5.2285]
[1746946119458,3.98596564,2508.9,2508.5,0.7805]
[1746946119654,3.98558692,2509.1,2508.5,0.7805]
[1746946119889,9.41738362,2510.2,2508.5,0.7805]
[1746946120207,4.514,2510.1,2508.6,0.03986454]
[1746946120420,4.514,2510.1,2508.6,1.51643645]
[1746946120600,3.98219773,2511.2,2508.9,0.753]
[1746946120772,3.98385989,2510.2,2509.1,0.753]
[1746946120973,4.72497097,2511.1,2509.2,0.5599454]
[1746946121174,0.21497097,2511.0,2509.2,0.5599454]
[1746946121416,0.21497097,2511.0,2509.4,0.55]
[1746946121708,0.353,2512.1,2509.3,2.803]
[1746946121709,0.21497097,2512.0,2509.8,0.55]
[1746946121924,0.21497097,2512.0,2510.1,0.753]
[1746946122117,0.21497097,2512.0,2510.2,0.8753]
[1746946122320,3.98073756,2512.1,2510.3,4.448]
[1746946122503,0.21497097,2512.2,2510.3,4.448]
[1746946122814,3.98188981,2511.4,2510.3,4.448]
[1746946123109,4.504,2511.9,2510.4,4.448]
[1746946123269,3.98168643,2511.5,2510.4,0.57215567]
[1746946123474,0.21497097,2511.8,2510.5,4.448]
[1746946123675,0.21497097,2511.8,2510.2,0.8753]
[1746946123972,4.70897097,2511.7,2510.3,4.448]
[1746946124191,4.70297097,2511.7,2510.3,4.448]
[1746946124407,0.35792646,2511.6,2510.4,0.80632155]
[1746946124613,0.35792646,2511.6,2510.5,1.06879107]
[1746946125118,0.35792646,2511.6,2510.4,0.7665]
[1746946125315,3.98277049,2510.9,2510.4,0.7665]
[1746946125519,3.98282579,2510.8,2510.4,0.7665]
[1746946125812,11.98215992,2511.2,2510.4,0.7665]
[1746946126109,3.98327026,2510.5,2510.0,4.447]
[1746946126311,3.9829965,2510.7,2510.0,4.447]
[1746946126490,3.98289939,2510.8,2510.0,4.447]
[1746946126691,3.98289939,2510.8,2510.1,0.03983707]
[1746946126886,8.42789373,2512.0,2510.1,0.03983707]
[1746946127207,3.98219198,2511.2,2510.0,4.447]
[1746946127385,4.467,2511.6,2510.0,6.40255]
[1746946127591,3.98229365,2511.2,2510.1,4.446]
[1746946128127,3.98184279,2511.4,2510.1,4.446]
[1746946128431,8.0,2511.3,2509.9,15.1085]
[1746946128627,0.3577718,2511.2,2509.9,19.5545]
[1746946128938,0.21462305,2511.1,2509.9,19.5545]
[1746946129085,3.9834146,2510.5,2509.9,19.5545]
[1746946129284,0.21462305,2511.1,2509.9,19.5545]
[1746946129483,0.21462305,2511.1,2509.9,0.7665]
[1746946129809,0.3577718,2511.2,2509.9,0.7665]
[1746946129810,0.21462305,2511.0,2509.9,0.7665]
[1746946130008,0.3577718,2510.9,2510.0,0.03984004]
[1746946130695,4.34045196,2510.9,2509.9,6.72133917]
[1746946131083,4.34045196,2510.9,2510.0,4.446]
[1746946131084,3.98268016,2510.9,2510.0,4.446]
[1746946131280,3.98235494,2511.1,2510.0,4.446]
[1746946131281,3.98251873,2511.0,2510.0,4.446]
[1746946131478,4.425,2511.7,2510.0,4.446]
[1746946131680,4.425,2511.7,2509.9,6.72133917]
[1746946131681,8.0,2511.5,2509.9,0.7665]
[1746946131885,3.98231885,2511.1,2510.0,4.48583612]
[1746946132127,3.98202598,2511.3,2510.0,4.48583612]
[1746946132419,0.3578584,2511.4,2510.0,4.48583612]
[1746946132420,0.3578584,2511.4,2510.1,0.7665]
[1746946133325,0.3578584,2511.4,2510.4,0.8306]
[1746946133698,3.98190605,2511.4,2510.4,0.8306]
[1746946134018,8.37940615,2511.7,2510.4,0.8306]
[1746946134312,3.9820274,2511.3,2510.4,0.8306]
[1746946134515,4.398,2511.7,2510.4,0.8306]
[1746946134817,8.37941223,2511.7,2510.4,0.8306]
[1746946135024,4.398,2511.7,2510.4,0.8306]
[1746946135525,4.398,2511.7,2510.5,4.446]
[1746946135734,4.398,2511.7,2510.5,5.51701892]
[1746946135937,3.98161674,2511.6,2510.5,5.51701892]
[1746946136238,4.398,2511.7,2510.5,5.51701892]
[1746946136740,3.98152572,2511.6,2510.5,5.51701892]
[1746946137035,4.363,2512.0,2510.7,0.8306]
[1746946137215,3.98143027,2511.7,2510.7,0.8306]
[1746946137416,3.98111614,2511.9,2510.8,0.03981854]
[1746946137637,3.98111614,2511.9,2510.7,0.8306]
[1746946137864,8.3439631,2512.0,2510.7,0.8306]
[1746946138136,4.363,2512.0,2510.9,0.7661]
[1746946138336,3.98004406,2512.6,2511.2,1.3161]
[1746946138491,0.30462293,2513.0,2511.3,0.7661]
[1746946138690,4.57374711,2512.9,2511.4,4.445]
[1746946138929,4.57374711,2512.9,2511.6,0.7661]
[1746946139131,4.57374711,2512.9,2511.7,0.03980297]
[1746946139332,4.57374711,2512.9,2511.7,0.7661]
[1746946139624,3.97855676,2513.5,2512.0,0.7661]
[1746946139625,4.357,2513.5,2512.0,0.7661]
[1746946139826,4.357,2513.5,2512.1,0.0397951]
[1746946140028,8.33564489,2513.5,2512.2,5.2101]
[1746946140194,3.3630934,2513.6,2512.2,5.2101]
[1746946140395,3.97882356,2513.4,2512.2,5.2101]
[1746946140623,3.3630934,2513.6,2512.2,0.7661]
[1746946140932,3.3630934,2513.6,2512.3,4.444]
[1746946141232,3.97966041,2512.8,2512.3,4.444]
[1746946141440,4.333,2512.9,2511.8,15.0981]
[1746946141599,4.333,2512.8,2511.8,15.0981]
[1746946142295,3.9810502,2511.9,2511.8,0.7661]
[1746946142692,3.98152572,2511.6,2510.0,5.43358917]
[1746946142933,3.98184279,2511.4,2510.1,1.30945892]
[1746946143147,3.98211453,2511.3,2510.2,0.03983181]
[1746946143330,0.20764506,2512.4,2510.2,0.03983181]
[1746946143331,4.321,2511.7,2510.3,0.7908]
[1746946143532,8.30243586,2511.7,2510.3,0.7908]
[1746946143742,4.321,2511.7,2510.3,0.7908]
[1746946144061,8.21550481,2511.6,2510.5,0.7908]
[1746946144203,0.21550481,2511.6,2510.6,0.56728242]
[1746946144704,3.98123817,2511.8,2510.7,0.7908]
[1746946144924,8.28794564,2512.0,2510.8,0.03981747]
[1746946145159,8.0,2511.9,2510.7,0.7908]
[1746946145358,8.0,2511.9,2510.8,0.03981493]
[1746946145673,8.0,2511.9,2510.7,0.7908]
[1746946145980,3.98218067,2511.2,2510.0,0.7908]
[1746946146268,3.98267714,2510.9,2510.1,0.51018]
[1746946146558,3.98342964,2510.4,2510.0,0.7908]
[1746946146764,4.19891578,2510.8,2510.0,0.7908]
[1746946146922,0.21609074,2510.8,2510.0,0.7908]
[1746946147127,4.34335798,2510.7,2510.0,0.7908]
[1746946147337,3.98317927,2510.6,2510.0,0.7908]
[1746946147556,0.36025759,2510.7,2510.1,0.03983838]
[1746946147879,8.0,2510.6,2510.0,0.7908]
[1746946148043,3.98373635,2510.3,2510.0,0.7908]
[1746946148363,4.283,2510.2,2509.5,0.8159]
[1746946148569,3.98438168,2509.8,2509.5,0.8159]
[1746946148766,4.283,2510.2,2509.5,0.8159]
[1746946148969,3.98430977,2509.9,2509.5,0.8159]
[1746946149169,0.36025759,2510.1,2509.5,0.8159]
[1746946149518,3.98421608,2510.0,2509.5,0.8159]
[1746946149761,0.36025759,2510.1,2509.5,0.8159]
[1746946150145,8.0,2510.5,2509.5,0.8159]
[1746946150146,4.27,2510.2,2509.5,0.8159]
[1746946150347,3.98419065,2510.0,2509.5,0.8159]
[1746946150657,4.27,2510.2,2509.5,0.8159]
[1746946151021,3.98349068,2510.4,2509.5,0.8159]
[1746946151347,4.26,2510.4,2509.5,0.8159]
[1746946151667,3.98436914,2509.9,2509.5,0.8159]
[1746946151962,4.26,2510.4,2509.5,0.8159]
[1746946152122,4.26,2510.4,2509.6,0.03984744]
[1746946152348,4.245,2511.0,2509.8,0.8159]
[1746946152559,0.21616319,2510.9,2509.8,0.8159]
[1746946152960,0.21616319,2510.9,2509.9,5.43358917]
[1746946153160,4.24,2511.4,2510.1,0.8159]
[1746946153656,8.0,2511.3,2510.1,0.8159]
[1746946153865,0.21586791,2511.3,2510.2,0.03982869]
[1746946154229,0.21586791,2511.3,2510.4,0.8159]
[1746946154428,0.21586791,2511.3,2510.5,4.97677066]
[1746946154625,3.98127935,2511.8,2510.5,4.97677066]
[1746946154841,3.98137715,2511.7,2510.6,0.8159]
[1746946155187,0.3598494,2511.6,2510.7,0.03981985]
[1746946155341,0.3598494,2511.6,2510.6,0.8159]
[1746946155546,3.98168425,2511.5,2510.6,0.8159]
[1746946155840,3.9829031,2510.8,2510.6,0.8159]
[1746946156046,4.209,2511.0,2510.6,0.8159]
[1746946156568,0.3598494,2510.9,2510.7,0.03983133]
[1746946156760,3.98073325,2512.1,2510.8,4.312]
[1746946157075,3.98079348,2512.1,2510.9,0.03981837]
[1746946157277,0.21591363,2512.0,2511.0,0.8159]
[1746946157490,0.21591363,2512.0,2511.1,0.03981409]
[1746946157691,0.21591363,2512.0,2511.1,5.47340326]
[1746946157894,0.21591363,2512.0,2511.3,0.7797]
[1746946158194,3.9783688,2513.6,2511.6,0.7797]
[1746946158195,4.19,2513.1,2511.6,0.7797]
[1746946158494,8.0,2512.9,2511.7,4.312]
[1746946158694,8.0,2512.9,2511.8,0.03980097]
[1746946158993,4.179,2513.5,2511.9,6.21328917]
[1746946159203,4.179,2513.5,2512.3,5.43358917]
[1746946159492,3.97880955,2513.4,2512.4,0.7797]
[1746946159657,4.179,2513.5,2512.5,4.21979148]
[1746946159992,3.97948885,2512.9,2512.5,4.18]
[1746946160192,8.0,2513.4,2512.5,4.18]
[1746946160402,1.01168217,2514.0,2512.6,0.03979543]
[1746946160555,3.97841408,2513.6,2512.6,0.03979543]
[1746946160754,8.0,2513.7,2512.7,0.7797]
[1746946161088,4.17,2513.9,2512.7,0.7797]
[1746946161270,8.14791265,2513.9,2512.7,0.7797]
[1746946161471,4.17,2513.9,2512.9,0.7797]
[1746946161696,3.9781815,2513.8,2512.9,0.7797]
[1746946161872,3.97804121,2513.8,2512.9,0.7797]
[1746946162194,4.17,2513.9,2512.9,0.7797]
[1746946162366,3.3630934,2514.7,2512.9,0.7797]
[1746946162557,3.9780225,2513.9,2513.0,0.03978249]
[1746946162975,8.0,2514.3,2513.0,0.03978249]
[1746946163255,12.28180612,2514.4,2513.0,4.179]
[1746946163256,8.0,2514.1,2513.0,4.179]
[1746946163455,3.97879182,2513.4,2513.0,4.179]
[1746946163655,3.97836191,2513.6,2513.0,4.179]
[1746946163890,12.146,2514.0,2513.0,4.179]
[1746946163891,3.97788297,2513.9,2513.0,4.179]
[1746946164054,12.146,2514.0,2513.0,4.179]
[1746946164479,3.97830055,2513.7,2513.0,4.179]
[1746946164691,3.97861412,2513.5,2513.0,4.179]
[1746946164921,3.97910749,2513.2,2512.9,0.7797]
[1746946165119,3.9789544,2513.3,2512.9,0.7797]
[1746946165323,3.97871698,2513.4,2512.9,0.7797]
[1746946165533,3.9786743,2513.4,2512.2,14.333]
[1746946165708,3.97960159,2512.9,2512.3,0.8009]
[1746946165899,8.0,2513.1,2512.4,0.03980205]
[1746946166213,4.127,2513.2,2512.4,0.03979761]
[1746946166392,4.127,2513.2,2512.3,0.8009]
[1746946166746,3.97942805,2513.0,2512.3,0.8009]
[1746946166889,4.128,2513.3,2512.3,0.8009]
[1746946167091,3.97938073,2513.0,2512.3,0.8009]
[1746946167319,3.97908793,2513.2,2512.3,0.8009]
[1746946167592,4.128,2513.3,2512.3,0.8009]
[1746946167820,3.97995795,2512.6,2512.3,0.8009]
[1746946168126,3.97948926,2512.9,2512.3,0.8009]
[1746946168312,4.119,2512.8,2512.3,0.8009]